fUSD/lending_fUSD_20250202
["ID","MTS","AMOUNT","RATE_DAILY","PERIOD"]
[351334679,1738516303734,-10284.26,0.00011917,2]
[351334680,1738516303745,-2652.56,0.00011917,2]
[351334681,1738516303757,-633.56,0.00011917,2]
[351334682,1738516303768,-1427.7,0.00011917,2]
[351334683,1738516303777,-12127.67,0.00011917,2]
[351334684,1738516303788,-555.992645,0.00011917,2]
[351334685,1738516303798,-576.949377,0.00011917,2]
[351334686,1738516303809,-500.0,0.00011917,2]
[351334687,1738516303819,-500.0,0.00011917,2]
[351334688,1738516303829,-7300.52,0.00011917,2]
[351334689,1738516303839,-4063.4,0.00011917,2]
[351334690,1738516303849,-6290.38,0.00011917,2]
[351334691,1738516303858,-1460.02,0.00011917,2]
[351334692,1738516303869,-824.29,0.00011917,2]
[351334693,1738516303878,-500.0,0.00011917,2]
[351334694,1738516303889,-500.0,0.00011917,2]
[351334695,1738516303899,-503.03956801,0.00011917,2]
[351334696,1738516303910,-2235.5,0.00011917,2]
[351334697,1738516303919,-1908.31,0.00011917,2]
[351334698,1738516303928,-7227.41,0.00011917,2]
[351334699,1738516303938,-6243.33,0.00011917,2]
[351334700,1738516303948,-2827.59,0.00011917,2]
[351334701,1738516303956,-500.0,0.00011917,2]
[351334702,1738516303967,-911.77,0.00011917,2]
[351334703,1738516303977,-1653.28,0.00011917,2]
[351334704,1738516303987,-571.56294,0.00011917,2]
[351334705,1738516304000,-500.0,0.00011917,2]
[351334706,1738516304011,-7297.29,0.00011917,2]
[351334707,1738516304021,-840.74,0.00011917,2]
[351334708,1738516304033,-500.0,0.00011917,2]
[351334709,1738516304044,-5332.32,0.00011917,2]
[351334710,1738516304054,-903.79,0.00011917,2]
[351334711,1738516304064,-1169.62,0.00011917,2]
[351334712,1738516304074,-3045.71,0.00011917,2]
[351334713,1738516304083,-2256.46,0.00011917,2]
[351334714,1738516304093,-500.0,0.00011917,2]
[351334715,1738516304103,-500.0,0.00011917,2]
[351334716,1738516304115,-1943.86,0.00011917,2]
[351334717,1738516304124,-2045.5,0.00011917,2]
[351334718,1738516304135,-454.142217,0.00011917,2]
[351334719,1738516304144,-1318.91,0.00011917,2]
[351334720,1738516304154,-500.0,0.00011917,2]
[351334721,1738516304165,-500.0,0.00011917,2]
[351334722,1738516304175,-500.0,0.00011917,2]
[351334723,1738516304185,-2414.38,0.00011917,2]
[351334724,1738516304195,-554.542878,0.00011917,2]
[351334725,1738516304205,-719.96,0.00011917,2]
[351334726,1738516304215,-500.0,0.00011917,2]
[351334727,1738516304225,-1536.13,0.00011917,2]
[351334728,1738516304236,-618.23,0.00011917,2]
[351334729,1738516304246,-1518.86,0.00011917,2]
[351334730,1738516304258,-628.12,0.00011917,2]
[351334731,1738516304268,-500.0,0.00011917,2]
[351334732,1738516304277,-11569.23,0.00011917,2]
[351334733,1738516304287,-2634.47,0.00011917,2]
[351334734,1738516304297,-826.16,0.00011917,2]
[351334735,1738516304306,-500.0,0.00011917,2]
[351334736,1738516304317,-3226.39,0.00011917,2]
[351334737,1738516304327,-5191.49,0.00011917,2]
[351334738,1738516304338,-6920.81,0.00011917,2]
[351334739,1738516304348,-3073.21,0.00011917,2]
[351334740,1738516304357,-7847.47,0.00011917,2]
[351334741,1738516304367,-500.0,0.00011917,2]
[351334742,1738516304377,-490.280531,0.00011917,2]
[351334743,1738516304386,-500.0,0.00011917,2]
[351334744,1738516304396,-2251.09,0.00011917,2]
[351334745,1738516304406,-614.64,0.00011917,2]
[351334746,1738516304415,-500.0,0.00011917,2]
[351334747,1738516304425,-1544.32,0.00011917,2]
[351334748,1738516304435,-230.841971,0.00011917,2]
[351334749,1738516304444,-230.841971,0.00011917,2]
[351334750,1738516304454,-500.0,0.00011917,2]
[351334751,1738516304464,-2556.72,0.00011917,2]
[351334752,1738516304473,-500.0,0.00011917,2]
[351334753,1738516304482,-728.57,0.00011917,2]
[351334754,1738516304492,-3154.41,0.00011917,2]
[351334755,1738516304504,-708.79,0.00011917,2]
[351334756,1738516304514,-433.0,0.00011933,2]
[351334757,1738516304523,-225.50188758,0.00011973,2]
[351334758,1738516304532,-820.93,0.00011999,2]
[351334759,1738516304542,-820.93,0.00011999,2]
[351334760,1738516304551,-820.93,0.00011999,2]
[351334761,1738516304560,-820.93,0.00011999,2]
[351334762,1738516304569,-820.93,0.00011999,2]
[351334763,1738516304578,-820.93,0.00011999,2]
[351334764,1738516304587,-820.93,0.00011999,2]
[351334765,1738516304596,-820.93,0.00011999,2]
[351334766,1738516304606,-820.93,0.00011999,2]
[351334767,1738516304615,-820.93,0.00011999,2]
[351334768,1738516304625,-820.93,0.00011999,2]
[351334769,1738516304634,-820.93,0.00011999,2]
[351334770,1738516304643,-820.93,0.00011999,2]
[351334771,1738516304652,-820.93,0.00011999,2]
[351334772,1738516304662,-820.93,0.00011999,2]
[351334773,1738516304671,-820.93,0.00011999,2]
[351334774,1738516304682,-820.93,0.00011999,2]
[351334775,1738516304692,-820.93,0.00011999,2]
[351334776,1738516304701,-820.93,0.00011999,2]
[351334777,1738516304710,-820.93,0.00011999,2]
[351334778,1738516304719,-821.06603332,0.00011999,2]
[351334779,1738516304728,-1407.12,0.00011999,2]
[351334780,1738516304737,-1275.37,0.00011999,2]
[351334781,1738516304746,-500.0,0.00011999,2]
[351334782,1738516304757,-500.0,0.00011999,2]
[351334783,1738516304767,-1036.04,0.00011999,2]
[351334784,1738516304777,-775.79,0.00011999,2]
[351334785,1738516304786,-500.0,0.00011999,2]
[351334786,1738516304795,-500.0,0.00011999,2]
[351334787,1738516304804,-1183.44,0.00011999,2]
[351334788,1738516304813,-500.0,0.00011999,2]
[351334789,1738516304823,-820.53,0.00011999,2]
[351334790,1738516304832,-1089.87,0.00011999,2]
[351334791,1738516304841,-512.0,0.00011999,2]
[351334792,1738516304850,-500.0,0.00011999,2]
[351334793,1738516304860,-927.9,0.00011999,2]
[351334794,1738516304869,-500.0,0.00011999,2]
[351334795,1738516304879,-180.62492692,0.00011999,2]
[351334796,1738516304890,-907.57,0.00011999,2]
[351334797,1738516304899,-500.0,0.00011999,2]
[351334798,1738516304909,-500.0,0.00011999,2]
[351334799,1738516304920,-518.18,0.00011999,2]
[351334800,1738516304929,-701.21,0.00011999,2]
[351334801,1738516304938,-732.02,0.00011999,2]
[351334802,1738516304949,-732.02,0.00011999,2]
[351334803,1738516304959,-732.02,0.00011999,2]
[351334804,1738516304970,-732.02,0.00011999,2]
[351334805,1738516304979,-732.02,0.00011999,2]
[351334806,1738516304989,-732.02,0.00011999,2]
[351334807,1738516305000,-732.02,0.00011999,2]
[351334808,1738516305016,-732.02,0.00011999,2]
[351334809,1738516305025,-732.02,0.00011999,2]
[351334810,1738516305035,-732.02,0.00011999,2]
[351334811,1738516305045,-732.02,0.00011999,2]
[351334812,1738516305058,-732.02,0.00011999,2]
[351334813,1738516305067,-732.02,0.00011999,2]
[351334814,1738516305077,-732.02,0.00011999,2]
[351334815,1738516305086,-732.02,0.00011999,2]
[351334816,1738516305096,-732.02,0.00011999,2]
[351334817,1738516305107,-500.0,0.00011999,2]
[351334818,1738516305117,-500.0,0.00011999,2]
[351334819,1738516305126,-732.02,0.00011999,2]
[351334820,1738516305137,-500.0,0.00011999,2]
[351334821,1738516305148,-500.0,0.00011999,2]
[351334822,1738516305159,-732.02,0.00011999,2]
[351334823,1738516305170,-500.0,0.00011999,2]
[351334824,1738516305181,-732.02,0.00011999,2]
[351334825,1738516305192,-500.0,0.00011999,2]
[351334826,1738516305202,-732.02,0.00011999,2]
[351334827,1738516305213,-500.0,0.00011999,2]
[351334828,1738516305222,-732.0422368,0.00011999,2]
[351334829,1738516305232,-500.0,0.00011999,2]
[351334830,1738516305242,-500.0,0.00011999,2]
[351334831,1738516305255,-500.0,0.00011999,2]
[351334832,1738516305264,-500.0,0.00011999,2]
[351334833,1738516305273,-500.0,0.00011999,2]
[351334834,1738516305283,-500.0,0.00011999,2]
[351334835,1738516305293,-500.0,0.00011999,2]
[351334836,1738516305303,-500.0,0.00011999,2]
[351334837,1738516305312,-500.0,0.00011999,2]
[351334838,1738516305322,-500.0,0.00011999,2]
[351334839,1738516305331,-500.0,0.00011999,2]
[351334840,1738516305341,-500.0,0.00011999,2]
[351334841,1738516305352,-500.0,0.00011999,2]
[351334842,1738516305362,-500.0,0.00011999,2]
[351334843,1738516305371,-500.0,0.00011999,2]
[351334844,1738516305381,-500.0,0.00011999,2]
[351334845,1738516305392,-483.44559142,0.00011999,2]
[351334846,1738516305402,-731.53,0.00011999,2]
[351334847,1738516305412,-500.0,0.00011999,2]
[351334848,1738516305421,-500.0,0.00011999,2]
[351334849,1738516305432,-908.72,0.00011999,2]
[351334850,1738516305442,-972.36,0.00011999,2]
[351334851,1738516305452,-586.8,0.00011999,2]
[351334852,1738516305461,-500.0,0.00011999,2]
[351334853,1738516305471,-1211.61,0.00011999,2]
[351334854,1738516305481,-803.8,0.00011999,2]
[351334855,1738516305491,-500.0,0.00011999,2]
[351334856,1738516305504,-1100.69,0.00011999,2]
[351334857,1738516305515,-1255.82,0.00011999,2]
[351334858,1738516305524,-1015.25,0.00011999,2]
[351334859,1738516305534,-1230.49,0.00011999,2]
[351334860,1738516305545,-500.0,0.00011999,2]
[351334861,1738516305554,-877.37,0.00011999,2]
[351334862,1738516305564,-896.07,0.00011999,2]
[351334863,1738516305574,-500.0,0.00011999,2]
[351334864,1738516305585,-369.01304665,0.00011999,2]
[351334865,1738516305596,-500.0,0.00011999,2]
[351334866,1738516305606,-844.16,0.00011999,2]
[351334867,1738516305615,-708.89,0.00011999,2]
[351334868,1738516305625,-519.89,0.00011999,2]
[351334869,1738516305635,-1367.4,0.00011999,2]
[351334870,1738516305645,-779.49,0.00011999,2]
[351334871,1738516305655,-500.0,0.00011999,2]
[351334872,1738516305665,-1445.17,0.00011999,2]
[351334873,1738516305676,-1824.29,0.00011999,2]
[351334874,1738516305686,-2240.32,0.00011999,2]
[351334875,1738516305697,-500.0,0.00011999,2]
[351334876,1738516305707,-500.0,0.00011999,2]
[351334877,1738516305717,-500.0,0.00011999,2]
[351334878,1738516305727,-1145.59,0.00011999,2]
[351334879,1738516305736,-1214.84,0.00011999,2]
[351334880,1738516305746,-520.5434157,0.00011999,2]
[351334881,1738516305759,-500.0,0.00011999,2]
[351334882,1738516305769,-503.17119696,0.00011999,2]
[351334883,1738516305779,-1214.6,0.00011999,2]
[351334884,1738516305790,-678.97,0.00011999,2]
[351334885,1738516305800,-2081.82,0.00011999,2]
[351334886,1738516305809,-1809.09,0.00011999,2]
[351334887,1738516305819,-500.0,0.00011999,2]
[351334888,1738516305829,-549.88,0.00011999,2]
[351334889,1738516305839,-2482.06,0.00011999,2]
[351334890,1738516305848,-1069.56,0.00011999,2]
[351334891,1738516305858,-500.0,0.00011999,2]
[351334892,1738516305867,-657.15,0.00011999,2]
[351334893,1738516305877,-1232.41,0.00011999,2]
[351334894,1738516305887,-877.66,0.00011999,2]
[351334895,1738516305899,-1552457.00963994,0.00012,2]
[351334896,1738516306243,-1961.5,0.00012,2]
[351334897,1738516306657,-707.94,0.00011095,2]
[351334898,1738516306668,-802.37,0.00011643,2]
[351334899,1738516306677,-24916.62770428,0.00012,2]
[351334900,1738516306689,-1671.22001,0.00012,2]
[351334901,1738516306701,-925.72210347,0.00012,2]
[351334902,1738516306717,-309601.12697025,0.00012,2]
[351334903,1738516306728,-21377.850802,0.00012,2]
[351334904,1738516306740,-695332.4620013,0.00012,2]
[351334905,1738516306819,-500.0,0.00010958,2]
[351334906,1738516306828,-163.543002,0.00012,2]
[351334907,1738516306863,-1464.38416683,0.00012,2]
[351334908,1738516307742,-500.0,0.00010958,2]
[351334909,1738516307755,-500.0,0.00010958,2]
[351334910,1738516307764,-500.0,0.00010958,2]
[351334911,1738516307773,-821.1,0.00010958,2]
[351334912,1738516307783,-500.0,0.00011095,2]
[351334913,1738516307792,-500.0,0.00011095,2]
[351334914,1738516307801,-500.0,0.00011095,2]
[351334915,1738516307810,-500.0,0.00011095,2]
[351334916,1738516307819,-821.1,0.00011095,2]
[351334917,1738516307828,-707.94,0.00011232,2]
[351334918,1738516307838,-500.0,0.00011232,2]
[351334919,1738516307847,-500.0,0.00011232,2]
[351334920,1738516307857,-500.0,0.00011232,2]
[351334921,1738516307866,-500.0,0.00011232,2]
[351334922,1738516307876,-707.94,0.00011369,2]
[351334923,1738516307885,-500.0,0.00011369,2]
[351334924,1738516307895,-500.0,0.00011369,2]
[351334925,1738516307904,-707.94,0.00011506,2]
[351334926,1738516307915,-500.0,0.00011506,2]
[351334927,1738516307925,-500.0,0.00011506,2]
[351334928,1738516307935,-707.94,0.00011643,2]
[351334929,1738516307945,-136.78509142,0.00011643,2]
[351334930,1738516307965,-500.0,0.00010958,2]
[351334931,1738516307975,-363.21490858,0.00011643,2]
[351334932,1738516307985,-802.37,0.0001178,2]
[351334933,1738516307995,-210.99861392,0.0001178,2]
[351334934,1738516308014,-496.94138608,0.0001178,2]
[351334935,1738516308025,-117.27972142,0.0001178,2]
[351334936,1738516308066,-354.56,0.00011643,2]
[351334937,1738516308076,-382.72027858,0.0001178,2]
[351334938,1738516308087,-802.37,0.00011917,2]
[351334939,1738516308097,-707.94,0.00011917,2]
[351334940,1738516308107,-500.0,0.00011917,2]
[351334941,1738516308119,-36290.9715614,0.00012,2]
[351334942,1738516308132,-10779.6,0.00012,2]
[351334943,1738516308189,-377.63146511,0.00012,2]
[351334944,1738516308202,-291.74229884,0.00012,2]
[351334945,1738516308222,-500.0,0.00011095,2]
[351334946,1738516308231,-2.97399563,0.00012,2]
[351334947,1738516308287,-821.1,0.00011232,2]
[351334948,1738516308297,-146529.55256608,0.00012,2]
[351334949,1738516308313,-42583.46536421,0.00012,2]
[351334950,1738516312810,502.36011826,9.873e-05,2]
[351334951,1738516313984,299497.63988174,9.8e-05,2]
[351334952,1738516350191,-19259.13701826,9.8e-05,2]
[351334953,1738516350225,-1000.0,9.8e-05,2]
[351334954,1738516350520,-500.0,9.8e-05,2]
[351334955,1738516350560,-279.4361,9.8e-05,2]
[351334956,1738516417657,312.3884,9.8e-05,2]
[351334957,1738516419372,28421.2572,9.8e-05,2]
[351334959,1738516608444,161.14,9.342e-05,2]
[351334961,1738516624498,200.0,9.322e-05,2]
[351334962,1738516664134,197.2,9.282e-05,2]
[351334964,1738516715728,973.14,9.275e-05,2]
[351334965,1738516736204,200.0,9.275e-05,2]
[351334967,1738516744027,298.29,9.266e-05,2]
[351334969,1738516856807,237.37,9.28e-05,2]
[351334970,1738516954635,250.0,9.271e-05,2]
[351334971,1738516974123,3814.34,9.28e-05,2]
[351334972,1738517021748,1026.3,8.219e-05,2]
[351334973,1738517055865,1019.8224,9.8e-05,2]
[351334974,1738517056897,776.59,9.217e-05,2]
[351334975,1738517061962,1158.38,9.234e-05,2]
[351334976,1738517081727,218.46,9.257e-05,2]
[351334977,1738517083319,701.0,9.606e-05,2]
[351334978,1738517116938,949.01,9.21e-05,2]
[351334979,1738517138337,23900.0,9.21e-05,2]
[351334982,1738517185811,771.07,0.00016658,30]
[351334983,1738517204147,2000.0,9.218e-05,2]
[351334984,1738517222653,2008.6839,9.8e-05,2]
[351334986,1738517258787,155.28,9.494e-05,2]
[351334987,1738517265451,31607.3292,9.8e-05,2]
[351334988,1738517280303,1500.0,9.22e-05,2]
[351334989,1738517283525,2500.0,9.8e-05,2]
[351334990,1738517289570,2562.5624,9.8e-05,2]
[351334992,1738517309252,668.04,9.186e-05,2]
[351334993,1738517315407,186.62,9.741e-05,2]
[351334994,1738517338077,5381.3,9.278e-05,2]
[351334995,1738517364123,-4682.161288,9.837e-05,2]
[351335011,1738517433159,-1805.91069653,9.837e-05,2]
[351335012,1738517433171,-266.21730347,9.84e-05,2]
[351335013,1738517433186,-262.826001,9.84e-05,2]
[351335014,1738517433227,-7950.71875286,9.84e-05,2]
[351335015,1738517433240,-8479.76205733,9.843e-05,2]
[351335016,1738517433252,-345.95000585,9.844e-05,2]
[351335017,1738517433265,-137466.66261186,9.846e-05,2]
[351335018,1738517433278,-200.0,9.849e-05,2]
[351335019,1738517433289,-200.0,9.849e-05,2]
[351335020,1738517433302,-8479.76205733,9.853e-05,2]
[351335021,1738517433314,-8479.76205733,9.854e-05,2]
[351335022,1738517433330,-345.95000585,9.855e-05,2]
[351335023,1738517433343,-137466.66261186,9.856e-05,2]
[351335024,1738517433356,-345.95000585,9.861e-05,2]
[351335025,1738517433375,-300.0,9.862e-05,2]
[351335026,1738517433388,-28808.0,9.863e-05,2]
[351335027,1738517433401,-137466.66261186,9.867e-05,2]
[351335028,1738517433417,-26213.51919567,9.871e-05,2]
[351335029,1738517433430,-4882.23182379,9.871e-05,2]
[351335030,1738517433443,-500.0,9.873e-05,2]
[351335031,1738517433457,-204.89848099,9.873e-05,2]
[351335032,1738517433470,-151.29923762,9.873e-05,2]
[351335033,1738517433483,-454.66935951,9.873e-05,2]
[351335034,1738517433497,-34041.74975857,9.873e-05,2]
[351335035,1738517433509,-306.88359765,9.873e-05,2]
[351335036,1738517433521,-6488.07198453,9.875e-05,2]
[351335037,1738517433534,-4882.23182379,9.876e-05,2]
[351335038,1738517433546,-137466.66261186,9.878e-05,2]
[351335039,1738517433558,-26213.51919567,9.879e-05,2]
[351335040,1738517433570,-6488.07198453,9.883e-05,2]
[351335041,1738517433588,-26213.51919567,9.884e-05,2]
[351335042,1738517433601,-345.95000585,9.887e-05,2]
[351335043,1738517433615,-200.0,9.888e-05,2]
[351335044,1738517433628,-6488.07198453,9.888e-05,2]
[351335046,1738517433640,-4882.23182379,9.889e-05,2]
[351335048,1738517433652,-26213.51919567,9.889e-05,2]
[351335050,1738517433664,-4882.23182379,9.897e-05,2]
[351335052,1738517433677,-669.47883399,9.899e-05,2]
[351335054,1738517433690,-1773.6152,9.899e-05,2]
[351335055,1738517433703,-150.0,9.899e-05,2]
[351335056,1738517433715,-180541.73010408,9.9e-05,2]
[351335057,1738517433730,-372.98264545,9.9e-05,2]
[351335061,1738517433780,-265.790003,9.9e-05,2]
[351335063,1738517433794,-5516.38947583,9.9e-05,2]
[351335066,1738517433809,-5132.73448587,9.9e-05,2]
[351335069,1738517433828,-9804.39854391,9.9e-05,2]
[351335071,1738517433843,-1160.31562287,9.9e-05,2]
[351335084,1738517433910,-603.49617554,9.873e-05,2]
[351335086,1738517433922,-307371.37276673,9.9e-05,2]
[351335088,1738517433938,-428.94,9.9e-05,2]
[351335090,1738517433954,-700.0,9.9e-05,2]
[351335095,1738517433996,-1228.65161221,9.9e-05,2]
[351335096,1738517434012,-3126.73071997,9.9e-05,2]
[351335097,1738517434028,-470.84609855,9.9e-05,2]
[351335098,1738517434043,-365.41440012,9.9e-05,2]
[351335099,1738517434058,-449.00374955,9.9e-05,2]
[351335100,1738517435173,-881.0802,9.9e-05,2]
[351335101,1738517435185,-11814.21129227,9.9e-05,2]
[351335102,1738517435221,-933.82112514,9.9e-05,2]
[351335103,1738517435233,-4893.3,9.9e-05,2]
[351335104,1738517435261,-20752.96081902,9.9e-05,2]
[351335105,1738517435273,-4014.45255788,9.9e-05,2]
[351335117,1738517437799,-490004.9999999,9.9e-05,2]
[351335118,1738517437814,-1527.6793611,9.9e-05,2]
[351335119,1738517437826,-303583.61216844,9.9e-05,2]
[351335120,1738517437843,-393194.59530939,9.9e-05,2]
[351335121,1738517437855,-79754.72204005,9.9e-05,2]
[351335122,1738517438163,-15000.0,9.9e-05,2]
[351335124,1738517438175,-19603.8,9.9e-05,2]
[351335131,1738517438237,-345.35833195,9.9e-05,2]
[351335134,1738517438250,-314.83898158,9.9e-05,2]
[351335136,1738517438262,-3717.23409282,9.9e-05,2]
[351335139,1738517438278,-3377.18376801,9.9e-05,2]
[351335142,1738517438298,-981.035,9.9e-05,2]
[351335144,1738517438309,-1025.0,9.9e-05,2]
[351335146,1738517438320,-13327.99209,9.9e-05,2]
[351335148,1738517438339,-1509472.49396938,9.9e-05,2]
[351335151,1738517438350,-137465.71775561,9.9e-05,2]
[351335153,1738517438364,-4902.98,9.9e-05,2]
[351335155,1738517438377,-1966.58,9.9e-05,2]
[351335157,1738517438388,-540.91351861,9.9e-05,2]
[351335159,1738517438400,-206923.15652759,9.9e-05,2]
[351335162,1738517438426,-6781.35598829,9.9e-05,2]
[351335165,1738517438438,-37395947.515679,9.9e-05,2]
[351335327,1738517439879,-299.50600699,9.9e-05,2]
[351335351,1738517439990,-6015.3884046,9.9e-05,2]
[351335365,1738517440053,-1201.22982874,9.9e-05,2]
[351335376,1738517440108,-15000.0,9.9e-05,2]
[351335379,1738517440120,-251.77950759,9.9e-05,2]
[351335393,1738517440219,-9808.6,9.9e-05,2]
[351335395,1738517440230,-9487.42599997,9.9e-05,2]
[351335403,1738517440299,-502.11464428,9.9e-05,2]
[351335405,1738517440311,-2440.35009255,9.9e-05,2]
[351335407,1738517440322,-582.983,9.9e-05,2]
[351335417,1738517440425,-97900.00000003,9.9e-05,2]
[351335423,1738517440475,-1508.70183977,9.9e-05,2]
[351335659,1738517442863,-348.42561316,9.899e-05,2]
[351335666,1738517442922,-152.01857231,9.899e-05,2]
[351335668,1738517442932,-49297.70228387,9.9e-05,2]
[351335674,1738517442980,-6383.46425847,9.9e-05,2]
[351335676,1738517442991,-7593.37458,9.9e-05,2]
[351335692,1738517443321,-334.43400001,9.9e-05,2]
[351335695,1738517443333,-9841.5,9.9e-05,2]
[351335703,1738517443381,-297.56034106,9.9e-05,2]
[351335705,1738517443395,-11511.28316653,9.9e-05,2]
[351335817,1738517444569,170.01,9.266e-05,2]
[351335839,1738517444784,170.01,9.281e-05,2]
[351335852,1738517445005,170.01,9.297e-05,2]
[351335896,1738517445693,170.01,9.312e-05,2]
[351335899,1738517445925,-755.60676301,9.9e-05,2]
[351335900,1738517446183,-104879.93210176,9.9e-05,2]
[351335901,1738517446195,-100000.01698,9.9e-05,2]
[351335902,1738517446256,-636.76379419,9.899e-05,2]
[351335903,1738517446266,-8291.46654989,9.9e-05,2]
[351335904,1738517446278,-4900.0,9.9e-05,2]
[351335905,1738517446291,-24450.0,9.9e-05,2]
[351335906,1738517446303,-686.03747694,9.9e-05,2]
[351335907,1738517446315,-264.71561091,9.9e-05,2]
[351335909,1738517446327,-258.64291931,9.9e-05,2]
[351335912,1738517446351,-268.82018562,9.9e-05,2]
[351335913,1738517446362,-241889.53896367,9.9e-05,2]
[351335914,1738517446374,-266926.50013062,9.9e-05,2]
[351335916,1738517446386,-4890.0,9.9e-05,2]
[351335917,1738517446530,-500.0,9.899e-05,2]
[351335918,1738517446540,-20814.4,9.9e-05,2]
[351335919,1738517446582,-349.87046341,9.899e-05,2]
[351335920,1738517446596,-113.96539318,9.899e-05,2]
[351335921,1738517446605,-194.56319567,9.9e-05,2]
[351335922,1738517446617,-1101.4928925,9.9e-05,2]
[351335923,1738517446628,-5604.53438438,9.9e-05,2]
[351335924,1738517446640,-263.258183,9.9e-05,2]
[351335925,1738517446651,-341.68719132,9.9e-05,2]
[351335926,1738517446719,-13214.78007802,9.9e-05,2]
[351335927,1738517446731,-298.48298651,9.9e-05,2]
[351335928,1738517446745,-4109.38618676,9.9e-05,2]
[351335929,1738517446756,-253.37492,9.9e-05,2]
[351335930,1738517446768,-2701.00000018,9.9e-05,2]
[351335931,1738517446779,-2303.71524413,9.9e-05,2]
[351335932,1738517446798,-1776.03188658,9.9e-05,2]
[351335933,1738517446860,-635.15869659,9.9e-05,2]
[351335934,1738517446871,-783.241996,9.9e-05,2]
[351335935,1738517446882,-353.526063,9.9e-05,2]
[351335936,1738517446900,-1334.12499108,9.9e-05,2]
[351335937,1738517490394,1955.83,9.23e-05,2]
[351335938,1738517492924,1000.0,9.23e-05,2]
[351335939,1738517496824,1000.0,0.00023,120]
[351335941,1738517547863,1138.9339,9.8e-05,2]
[351335942,1738517558376,1500.0,0.00023,120]
[351335943,1738517559967,288.47,0.00013,10]
[351335944,1738517562535,3453.62,9.209e-05,2]
[351335945,1738517595575,29741.54,9.216e-05,2]
[351335946,1738517603995,767.0,0.00023,120]
[351335947,1738517615031,-3188.52570897,9.841e-05,2]
[351335948,1738517615057,-3188.52570897,9.85e-05,2]
[351335949,1738517615083,-3188.52570897,9.851e-05,2]
[351335950,1738517615108,-3188.52570897,9.876e-05,2]
[351335951,1738517615131,-300.0,9.899e-05,2]
[351335952,1738517615155,-150.0,9.899e-05,2]
[351335953,1738517615179,-86795.89716412,9.9e-05,2]
[351335955,1738517759038,6568.38636348,9.324e-05,2]
[351335956,1738517759066,195.10363652,9.324e-05,2]
[351335958,1738517805707,412.0,0.00023,120]
[351335959,1738517832807,1000.0,9.8e-05,2]
[351335960,1738517873571,8064.9752,9.8e-05,2]
[351335962,1738517910221,4186.612,9.702e-05,2]
[351335963,1738517910262,212.441,9.702e-05,2]
[351335964,1738517941970,250.0,9.353e-05,2]
[351335965,1738517981535,671.16,9.344e-05,2]
[351335966,1738517984988,1700.0,9.1e-05,3]
[351335967,1738517987085,3400.0,9.2e-05,3]
[351335968,1738517989371,5100.0,9.3e-05,3]
[351335969,1738517991339,6900.0,9.4e-05,3]
[351335970,1738517993517,8600.0,9.5e-05,3]
[351335971,1738517995626,1700.0,9.6e-05,3]
[351335972,1738517997755,1700.0,9.7e-05,3]
[351335973,1738518000348,1700.0,9.8e-05,3]
[351335974,1738518002087,1700.0,9.9e-05,3]
[351335975,1738518004221,2000.0,0.0001,3]
[351335976,1738518009603,1000.0,9.8e-05,2]
[351335977,1738518017682,801.56,9.362e-05,2]
[351335978,1738518038187,83343.2495,9.8e-05,2]
[351335979,1738518068461,-280.69454182,9.831e-05,2]
[351335980,1738518068486,-933.24361692,9.831e-05,2]
[351335981,1738518068509,-933.24361692,9.832e-05,2]
[351335982,1738518068885,-5608.76603146,9.835e-05,2]
[351335983,1738518068915,-29733.40668721,9.837e-05,2]
[351335984,1738518068937,-262.05336201,9.845e-05,2]
[351335985,1738518068959,-280.69454182,9.847e-05,2]
[351335986,1738518068982,-61967.89760184,9.848e-05,2]
[351335987,1738518078683,23900.0,9.333e-05,2]
[351335988,1738518101980,1127.45,8.219e-05,2]
[351335989,1738518102886,4246.95697186,0.00023,120]